bitfinex-derivatives/quotes_BTCF0:USTF0_20251120
["timestamp","ask_amount","ask_price","bid_price","bid_amount"]
[1763634434418,0.00219803,92009.0,92008.0,0.06053417]
[1763634437232,0.00219803,92009.0,92008.0,0.05953417]
[1763634437430,0.00219803,92009.0,92008.0,0.06053417]
[1763634437727,0.00219803,92009.0,92008.0,0.00216299]
[1763634438428,0.02593417,92009.0,92008.0,0.001]
[1763634438625,0.1087981,92008.0,92001.0,0.01386]
[1763634438825,0.47180323,92002.0,92001.0,0.01386]
[1763634439133,0.57672323,92002.0,92001.0,0.01386]
[1763634439537,0.57672323,92002.0,92001.0,0.03683]
[1763634440032,0.57672323,92002.0,92001.0,0.01386]
[1763634442635,0.57672323,92002.0,92001.0,0.01448118]
[1763634442930,0.57672323,92002.0,92001.0,0.03745118]
[1763634443322,0.57672323,92002.0,92001.0,0.05930118]
[1763634446337,0.57672323,92002.0,92001.0,0.03745118]
[1763634447037,0.57672323,92002.0,92001.0,0.05930118]
[1763634447836,0.55059513,92002.0,92001.0,0.05930118]
[1763634448836,0.1088135,91995.0,91992.0,0.00016299]
[1763634449137,0.36299803,91993.0,91992.0,0.05924417]
[1763634449937,0.36299803,91993.0,91992.0,0.00078417]
[1763634450339,0.36299803,91993.0,91992.0,0.00016299]
[1763634453237,0.1088419,91971.0,91970.0,0.05836951]
[1763634453440,0.1088419,91971.0,91962.0,0.01359]
[1763634453441,0.57671993,91971.0,91969.0,0.04365]
[1763634453646,0.57671993,91971.0,91969.0,0.04427118]
[1763634454333,9.306e-05,91970.0,91969.0,0.04427118]
[1763634454535,0.00229109,91970.0,91969.0,0.04427118]
[1763634460729,0.10721109,91970.0,91969.0,0.04427118]
[1763634462843,0.10721109,91970.0,91969.0,0.04527118]
[1763634464548,0.00016308,91979.0,91969.0,0.04527118]
[1763634464549,3.08e-06,91979.0,91978.0,0.1524836]
[1763634464743,0.3608,91999.0,91998.0,0.05724]
[1763634464744,0.1088088,91999.0,91998.0,0.05724]
[1763634465044,0.21596683,91999.0,91998.0,0.05786118]
[1763634465453,0.57676683,91999.0,91998.0,0.05786118]
[1763634466149,0.46895803,91999.0,91998.0,0.05786118]
[1763634467050,0.46995803,91999.0,91998.0,0.05786118]
[1763634467749,0.46895803,91999.0,91998.0,0.05786118]
[1763634467948,0.36399803,91999.0,91998.0,0.05786118]
[1763634468146,0.46891803,91999.0,91998.0,0.05786118]
[1763634469450,0.46791803,91999.0,91998.0,0.05786118]
[1763634470753,0.36299803,91999.0,91998.0,0.05786118]
[1763634470950,0.3608,91999.0,91998.0,0.05786118]
[1763634471150,0.10492,92001.0,92000.0,0.04365]
[1763634471358,0.10492,92001.0,92000.0,0.04427118]
[1763634472254,0.10711803,92001.0,92000.0,0.04427118]
[1763634473356,0.10492,92001.0,92000.0,0.04427118]
[1763634473756,0.36096308,92008.0,92007.0,0.1524493]
[1763634474060,0.46808111,92008.0,92007.0,0.15307048]
[1763634474744,0.36096308,92008.0,92007.0,0.15307048]
[1763634475145,0.3608,92017.0,92016.0,0.1660287]
[1763634475344,0.3608,92017.0,92016.0,0.16664988]
[1763634476359,0.40723803,92017.0,92016.0,0.05786118]
[1763634476759,0.40923803,92017.0,92016.0,0.05786118]
[1763634480252,0.04843803,92017.0,92016.0,0.05786118]
[1763634480655,0.04843803,92017.0,92016.0,0.04427118]
[1763634480847,0.04843803,92017.0,92016.0,0.02227118]
[1763634481048,0.04843803,92017.0,92016.0,0.04427118]
[1763634481254,0.04843803,92017.0,92016.0,0.00062118]
[1763634481457,0.04843803,92017.0,92016.0,0.04427118]
[1763634481668,0.04843803,92017.0,92016.0,0.00062118]
[1763634481859,0.04424,92005.0,92004.0,0.05724]
[1763634482061,0.04643803,92005.0,92004.0,0.05786118]
[1763634483255,0.04643803,92005.0,92004.0,0.16666408]
[1763634484365,0.04643803,92005.0,92004.0,0.05786118]
[1763634485558,0.04643803,92005.0,92004.0,0.16666408]
[1763634491166,0.04643803,92005.0,92004.0,0.05786118]
[1763634492268,0.04643803,92005.0,92004.0,0.09666984]
[1763634493274,0.04643803,92005.0,92004.0,0.05786118]
[1763634494275,0.00219803,92005.0,92004.0,0.05786118]
[1763634494475,0.00219803,92005.0,92004.0,0.11623069]
[1763634494971,0.02356803,92005.0,92004.0,0.11623069]
[1763634495176,0.04577803,92005.0,92004.0,0.11623069]
[1763634495672,0.04577803,92005.0,92004.0,0.05786118]
[1763634496275,0.04577803,92005.0,92004.0,0.02227118]
[1763634496474,0.04577803,92005.0,92004.0,0.00062118]
[1763634497071,0.04577803,92005.0,92004.0,0.02172118]
[1763634497369,0.04358,92001.0,92000.0,0.10048951]
[1763634497569,0.15065803,92001.0,92000.0,0.10111069]
[1763634498278,0.62026443,92001.0,92000.0,0.05899069]
[1763634498474,0.04358,91999.0,91998.0,0.07946951]
[1763634498679,0.04577803,91999.0,91998.0,0.04274118]
[1763634499772,0.04577803,91999.0,91998.0,0.05542118]
[1763634500377,0.04577803,91999.0,91998.0,0.11379069]
[1763634501181,0.04577803,91999.0,91998.0,0.05542118]
[1763634501373,0.04577803,91999.0,91998.0,0.11379069]
[1763634502079,0.04577803,91999.0,91998.0,0.05542118]
[1763634505778,0.15458683,91999.0,91998.0,0.05542118]
[1763634507870,0.15458683,91999.0,91998.0,0.11382196]
[1763634509079,0.15458683,91999.0,91998.0,0.05542118]
[1763634509788,0.15458683,91999.0,91998.0,0.11382196]
[1763634509979,0.15458683,91999.0,91998.0,0.05542118]
[1763634510577,0.15458683,91999.0,91998.0,0.22263196]
[1763634510782,0.15458683,91999.0,91998.0,0.16423118]
[1763634511281,0.15458683,91999.0,91998.0,0.22263196]
[1763634511485,0.00219803,91999.0,91998.0,0.16423118]
[1763634511687,0.10703803,91999.0,91998.0,0.16423118]
[1763634512476,0.21584683,91999.0,91998.0,0.16423118]
[1763634512680,0.26199683,91999.0,91998.0,0.16423118]
[1763634513382,0.58,92005.0,91998.0,0.16423118]
[1763634513587,0.58,92005.0,92004.0,0.1526629]
[1763634513782,0.58,92005.0,92004.0,0.15486093]
[1763634514780,0.60322,92005.0,92004.0,0.04605803]
[1763634514997,0.62655,92005.0,92004.0,0.15486093]
[1763634515186,0.60322,92005.0,92004.0,0.15486093]
[1763634515590,0.58,92005.0,92004.0,0.21329003]
[1763634516089,0.58,92005.0,92004.0,0.15486093]
[1763634516589,0.58,92005.0,92004.0,0.21329003]
[1763634516990,0.58,92005.0,92004.0,0.15486093]
[1763634517681,0.58,92005.0,92004.0,0.21329003]
[1763634518285,0.62655,92005.0,92004.0,0.04605803]
[1763634519092,0.60042476,92005.0,92004.0,0.10448713]
[1763634520389,0.57709476,92005.0,92004.0,0.21329003]
[1763634520693,0.55387476,92005.0,92004.0,0.21329003]
[1763634521585,0.55387476,92005.0,92004.0,0.15486093]
[1763634523094,0.55387476,92005.0,92004.0,0.21326523]
[1763634523498,0.55387476,92005.0,92004.0,0.15486093]
[1763634524795,0.55387476,92005.0,92004.0,0.23325919]
[1763634524996,0.55387476,92005.0,92004.0,0.15486093]
[1763634527589,0.55387476,92005.0,92004.0,0.25970093]
[1763634528793,0.55387476,92005.0,92004.0,0.15486093]
[1763634528999,0.55387476,92005.0,92004.0,0.25970093]
[1763634531296,0.57709476,92005.0,92004.0,0.25970093]
[1763634531490,0.60042476,92005.0,92004.0,0.02493803]
[1763634532197,0.60042476,92005.0,92004.0,0.04605803]
[1763634533105,0.60042476,92005.0,92004.0,0.10440153]
[1763634534894,0.60042476,92005.0,92004.0,0.21320443]
[1763634535503,0.60042476,92005.0,92004.0,0.15486093]
[1763634535704,0.60042476,92005.0,92004.0,0.05836134]
[1763634535890,0.60042476,92005.0,92004.0,0.08110134]
[1763634536094,0.60042476,92005.0,92004.0,0.10222134]
[1763634536301,0.60042476,92005.0,92004.0,0.10441937]
[1763634537095,0.60042476,92005.0,92004.0,0.04605803]
[1763634539106,0.60042476,92005.0,92004.0,0.15486093]
[1763634539295,0.60042476,92005.0,92004.0,0.04605803]
[1763634539696,0.1553588,91999.0,91998.0,0.3608]
[1763634539905,0.2601988,91999.0,91998.0,0.3608]
[1763634540503,0.04655,91990.0,91988.0,0.07776046]
[1763634540698,0.04655,91990.0,91989.0,0.00236111]
[1763634542496,0.04655,91990.0,91989.0,0.04841111]
[1763634543400,0.04655,91990.0,91989.0,0.00236111]
[1763634545299,0.04655,91990.0,91989.0,0.00336111]
[1763634545498,0.04655,91990.0,91989.0,0.02503111]
[1763634545904,0.04655,91990.0,91989.0,0.04734111]
[1763634546214,0.02322,91990.0,91989.0,0.04734111]
[1763634546405,0.04469,91990.0,91989.0,0.04734111]
[1763634548208,0.1535094,91990.0,91989.0,0.04734111]
[1763634548411,0.04469,91990.0,91989.0,0.04834111]
[1763634552817,0.1535094,91990.0,91989.0,0.04834111]
[1763634553014,0.04469,91990.0,91989.0,0.04834111]
[1763634555714,0.1320394,91990.0,91989.0,0.04834111]
[1763634555909,0.12793,91995.0,91994.0,0.1537947]
[1763634556212,0.12793,91995.0,91994.0,0.15599273]
[1763634556213,0.02309,91995.0,91994.0,0.15599273]
[1763634556419,0.04456,91995.0,91994.0,0.15599273]
[1763634557209,0.02309,91995.0,91994.0,0.15599273]
[1763634557515,0.59843476,92005.0,92004.0,0.1537829]
[1763634557722,0.59843476,92005.0,92004.0,0.16964093]
[1763634558617,0.59843476,92005.0,92004.0,0.22798537]
[1763634558821,0.59843476,92005.0,92004.0,0.16964093]
[1763634559407,0.59843476,92005.0,92004.0,0.22798779]
[1763634560212,0.59843476,92005.0,92004.0,0.16964093]
[1763634562820,0.59843476,92005.0,92004.0,0.15598093]
[1763634564027,0.59843476,92005.0,92004.0,0.04717803]
[1763634568812,0.60501476,92005.0,92004.0,0.00219803]
[1763634569524,0.60501476,92005.0,91987.0,0.07776046]
[1763634569525,0.05727,91990.0,91987.0,0.07776046]
[1763634569723,0.1660894,91990.0,91989.0,0.00236111]
[1763634569925,0.1660894,91990.0,91989.0,0.02361111]
[1763634570122,0.1660894,91990.0,91989.0,0.00236111]
[1763634570424,0.1660894,91990.0,91989.0,0.02361111]
[1763634570624,0.1660894,91990.0,91989.0,0.04566111]
[1763634571018,0.1660894,91990.0,91989.0,0.00336111]
[1763634571226,0.1660894,91990.0,91989.0,0.061717]
[1763634572025,0.1660894,91990.0,91989.0,0.00116308]
[1763634572421,0.2709294,91990.0,91989.0,0.00116308]
[1763634573328,0.2709294,91990.0,91989.0,0.00016308]
[1763634575329,0.1660894,91990.0,91989.0,0.00016308]
[1763634575530,0.045,92000.0,91999.0,0.1088088]
[1763634575726,0.045,92000.0,91999.0,0.15372683]
[1763634575928,0.95967476,92005.0,92004.0,0.1642029]
[1763634576126,0.59887476,92005.0,92004.0,0.16640093]
[1763634576429,0.55387476,92005.0,92004.0,0.16640093]
[1763634577229,0.045,92027.0,92026.0,0.1514969]
[1763634577427,0.02219,92027.0,92026.0,0.25853493]
[1763634577632,0.045,92041.0,92040.0,0.1514795]
[1763634577938,0.1537591,92041.0,92040.0,0.0625972]
[1763634578233,0.1537591,92041.0,92040.0,0.02376803]
[1763634578925,0.1537591,92041.0,92040.0,0.04491803]
[1763634579733,0.045,92041.0,92040.0,0.04491803]
[1763634580132,0.046,92041.0,92040.0,0.04491803]
[1763634580332,0.047,92041.0,92040.0,0.04491803]
[1763634580734,0.02419,92041.0,92040.0,0.04491803]
[1763634581726,0.047,92041.0,92040.0,0.04491803]
[1763634582036,0.047,92041.0,92040.0,0.10703803]
[1763634582533,0.047,92041.0,92040.0,0.12860803]
[1763634583536,0.047,92041.0,92040.0,0.04491803]
[1763634583735,0.047,92041.0,92040.0,0.14975803]
[1763634584333,0.047,92041.0,92040.0,0.02376803]
[1763634584637,0.047,92041.0,92040.0,0.10703803]
[1763634584829,0.047,92041.0,92040.0,0.12860803]
[1763634585032,0.047,92041.0,92040.0,0.10703803]
[1763634587442,0.4078,92041.0,92040.0,0.10699803]
[1763634587643,0.1537698,92032.0,92031.0,0.04288298]
[1763634587827,0.045,92018.0,92017.0,0.03880376]
[1763634588034,0.045,92018.0,92017.0,0.00062119]
[1763634588035,0.15598433,92018.0,92017.0,0.00062119]
[1763634588233,0.15598433,92018.0,92017.0,0.02219119]
[1763634588436,0.04719803,92018.0,92017.0,0.04334119]
[1763634589841,0.04719803,92018.0,92017.0,0.15212869]
[1763634591743,0.04319803,92018.0,92017.0,0.15212869]
[1763634591938,0.04319803,92018.0,92017.0,0.04334119]
[1763634593743,0.04319803,92018.0,92017.0,0.14818119]
[1763634600050,0.3608,92024.0,92023.0,0.04272]
[1763634600051,0.38299,92024.0,92023.0,0.04272]
[1763634600344,0.51677723,92024.0,92023.0,0.04334119]
[1763634600940,0.51677723,92024.0,92023.0,0.14814119]
[1763634602048,0.51677723,92024.0,92023.0,0.00062119]
[1763634602445,0.51677723,92024.0,92023.0,0.05252119]
[1763634605148,0.00219803,92024.0,92023.0,0.05252119]
[1763634605651,0.00016266,92027.0,92026.0,0.0519]
[1763634605849,0.00016266,92027.0,92026.0,0.05252119]
[1763634606445,0.00016266,92027.0,92026.0,0.15732119]
[1763634606853,0.139077,92035.0,92034.0,0.0519]
[1763634607152,0.160307,92035.0,92034.0,0.05252119]
[1763634607355,0.05154,92035.0,92034.0,0.16128859]
[1763634608149,0.1602991,92041.0,92040.0,0.1606597]
[1763634608355,0.16249713,92041.0,92040.0,0.26608089]
[1763634608751,0.05373803,92041.0,92040.0,0.26608089]
[1763634609266,0.05473803,92041.0,92040.0,0.26608089]
[1763634609457,0.05573803,92041.0,92040.0,0.26608089]
[1763634609666,0.002,92041.0,92040.0,0.26608089]
[1763634611449,0.05573803,92041.0,92040.0,0.05252119]
[1763634611846,0.002,92041.0,92040.0,0.15732119]
[1763634612147,0.05573803,92041.0,92040.0,0.15732119]
[1763634612949,0.05573803,92041.0,92040.0,0.05252119]
[1763634613349,0.05573803,92041.0,92040.0,0.15732119]
[1763634615650,0.05573803,92041.0,92040.0,0.19613347]
[1763634615862,0.05573803,92041.0,92040.0,0.09133347]
[1763634616062,0.05573803,92041.0,92040.0,0.15732119]
[1763634617061,0.05573803,92041.0,92040.0,0.05252119]
[1763634617455,0.05573803,92041.0,92040.0,0.15732119]
[1763634618055,0.05573803,92041.0,92040.0,0.19613347]
[1763634618257,0.05354,92041.0,92040.0,0.19613347]
[1763634618453,0.05354,92041.0,92040.0,0.19607276]
[1763634619557,0.05354,92041.0,92040.0,0.21440276]
[1763634620358,0.03231,92041.0,92040.0,0.17565119]
[1763634621366,0.05354,92041.0,92040.0,0.17565119]
[1763634621659,0.05354,92041.0,92040.0,0.21440276]
[1763634622065,0.05573803,92041.0,92040.0,0.19607276]
[1763634623269,0.05573803,92041.0,92040.0,0.21440276]
[1763634623460,0.05573803,92041.0,92040.0,0.17565119]
[1763634623860,0.05573803,92041.0,92040.0,0.07085119]
[1763634624070,0.05573803,92041.0,92040.0,0.17565119]
[1763634624659,0.05573803,92041.0,92040.0,0.21440276]
[1763634625066,0.05573803,92041.0,92040.0,0.17565119]
[1763634625360,0.05573803,92041.0,92040.0,0.21440276]
[1763634625565,0.05573803,92041.0,92040.0,0.17565119]
[1763634625768,0.0002716,92046.0,92045.0,0.1606544]
[1763634626069,0.0002716,92046.0,92045.0,0.16285243]
[1763634626854,0.0002716,92046.0,92045.0,0.22098409]
[1763634627068,0.0012716,92046.0,92045.0,0.22098409]
[1763634627261,0.0012716,92046.0,92045.0,0.16285243]
[1763634627665,0.0022716,92046.0,92045.0,0.16285243]
[1763634628868,0.0594616,92046.0,92045.0,0.05409803]
[1763634629070,0.0022716,92046.0,92045.0,0.15889803]
[1763634629262,0.5232996,92066.0,92065.0,0.05366]
[1763634629462,0.5232996,92066.0,92065.0,0.05585803]
[1763634629868,0.41457,92066.0,92065.0,0.05585803]
[1763634630071,0.05377,92066.0,92065.0,0.05585803]
[1763634630866,0.162492,92073.0,92072.0,0.05366]
[1763634631071,0.162492,92073.0,92072.0,0.05585803]
[1763634631469,0.05377,92073.0,92072.0,0.05585803]
[1763634632174,0.05577,92073.0,92072.0,0.05585803]
[1763634632968,0.05577,92073.0,92072.0,0.16065803]
[1763634633570,0.05577,92073.0,92072.0,0.05585803]
[1763634633772,0.05577,92073.0,92072.0,0.00219803]
[1763634634274,0.05577,92073.0,92072.0,0.02883803]
[1763634635173,0.05577,92073.0,92072.0,0.00219803]
[1763634636273,0.06774,92064.0,92063.0,0.038753]
[1763634636575,0.05402,92064.0,92063.0,0.05710803]
[1763634637079,0.06708,92064.0,92063.0,0.05710803]
[1763634637378,0.06708,92064.0,92063.0,0.00219803]
[1763634638875,0.06708,92064.0,92063.0,0.11093123]
[1763634639378,0.06708,92064.0,92063.0,0.00219803]
[1763634640483,0.05402,92064.0,92063.0,0.05710803]
[1763634640891,0.162752,92064.0,92063.0,0.05710803]
[1763634641387,0.05402,92064.0,92063.0,0.05710803]
[1763634641588,0.07019,92064.0,92063.0,0.02883803]
[1763634641976,0.05402,92064.0,92063.0,0.05710803]
[1763634642477,0.02754,92068.0,92067.0,0.05491]
[1763634642677,0.1627417,92073.0,92072.0,0.05491]
[1763634642876,0.1627417,92073.0,92072.0,0.05710803]
[1763634643070,0.1627417,92073.0,92072.0,0.16583053]
[1763634643277,0.05402,92073.0,92072.0,0.16583053]
[1763634643875,0.05502,92073.0,92072.0,0.16583053]
[1763634644688,0.1627296,92083.0,92082.0,0.1087084]
[1763634644879,0.1627296,92083.0,92082.0,0.16581643]
[1763634645272,0.05402,92083.0,92082.0,0.16581643]
[1763634645477,0.1627296,92083.0,92082.0,0.16581643]
[1763634645674,0.05402,92083.0,92082.0,0.16581643]
[1763634646892,0.05402,92083.0,92082.0,0.05710803]
[1763634647277,0.05402,92083.0,92082.0,0.08613858]
[1763634647481,0.05402,92083.0,92082.0,0.05710803]
[1763634648189,0.38861149,92086.0,92085.0,0.07159]
[1763634648385,0.41509149,92086.0,92085.0,0.07378803]
[1763634649292,0.36107149,92086.0,92085.0,0.07378803]
[1763634649486,0.38834,92095.0,92094.0,0.05491]
[1763634649686,0.41482,92095.0,92094.0,0.05710803]
[1763634651180,0.04371,92106.0,92105.0,0.01384]
[1763634651388,0.04371,92106.0,92105.0,0.00219803]
[1763634651389,0.1788724,92106.0,92105.0,0.00219803]
[1763634651679,0.1788724,92106.0,92105.0,0.10699803]
[1763634651985,0.1788724,92106.0,92105.0,0.11391803]
[1763634652191,0.07019,92106.0,92105.0,0.12083803]
[1763634652592,0.07019,92106.0,92105.0,0.00219803]
[1763634654594,0.05402,92097.0,92096.0,0.36096289]
[1763634654797,0.162713,92097.0,92096.0,0.36316092]
[1763634655094,0.1627213,92090.0,92089.0,0.1048]
[1763634655293,0.05621803,92090.0,92089.0,0.10542119]
[1763634655494,0.05621803,92090.0,92089.0,0.23268369]
[1763634655792,0.05621803,92090.0,92089.0,0.12398119]
[1763634656393,0.05621803,92090.0,92085.0,0.3608]
[1763634656394,0.162726,92086.0,92085.0,0.3608]
[1763634656597,0.162726,92086.0,92085.0,0.36142119]
[1763634656598,0.05621803,92086.0,92085.0,0.36142119]
[1763634657297,0.05621803,92086.0,92085.0,0.39039783]
[1763634657592,0.05621803,92086.0,92085.0,0.39139783]
[1763634658092,0.05621803,92086.0,92085.0,0.39239783]
[1763634658296,0.05621803,92086.0,92085.0,0.41095783]
[1763634658793,0.05621803,92086.0,92085.0,0.41096479]
[1763634659097,0.05621803,92086.0,92085.0,0.40168479]
[1763634659293,0.05621803,92086.0,92085.0,0.39240479]
[1763634659489,0.05621803,92086.0,92085.0,0.03160479]
[1763634660598,0.05621803,92086.0,92085.0,0.00262119]
[1763634661393,0.05621803,92086.0,92085.0,0.02118119]
[1763634662499,0.05621803,92086.0,92085.0,0.00262119]
[1763634664502,0.1616719,92081.0,92080.0,2.89e-06]
[1763634664699,0.05296,92074.0,92069.0,0.0289836]
[1763634664894,0.16388293,92070.0,92069.0,0.00062119]
[1763634666098,0.05296,92061.0,92060.0,0.00016289]
[1763634666297,0.05515803,92061.0,92060.0,0.00078408]
[1763634666493,0.05515803,92061.0,92060.0,0.03948601]
[1763634666689,0.05515803,92061.0,92060.0,0.00078408]
[1763634666890,0.05515803,92061.0,92060.0,0.03948601]
[1763634667098,0.05515803,92061.0,92060.0,0.00078408]
[1763634667296,0.05515803,92061.0,92060.0,0.00116289]
[1763634667502,0.05296,92055.0,92054.0,4.82e-06]
[1763634667800,0.05296,92052.0,92051.0,0.00011153]
[1763634668003,0.05296,92052.0,92051.0,0.00073272]
[1763634668004,0.05515803,92052.0,92051.0,0.00073272]
[1763634668993,0.05515803,92052.0,92051.0,0.02746272]
[1763634669601,0.05515803,92052.0,92051.0,0.02846272]
[1763634671805,0.05515803,92052.0,92051.0,0.00111153]
[1763634672005,0.05515803,92052.0,92051.0,0.00173272]
[1763634674497,0.05515803,92052.0,92051.0,0.05597272]
[1763634676307,0.05515803,92052.0,92051.0,0.00173272]
[1763634676506,0.05515803,92052.0,92051.0,0.02846272]
[1763634677408,0.05515803,92052.0,92051.0,0.05597272]
[1763634677607,0.05515803,92052.0,92051.0,0.16472002]
[1763634677914,0.00219803,92052.0,92051.0,0.16472002]
[1763634679013,0.11094423,92052.0,92051.0,0.05597272]
[1763634680520,0.1087432,92055.0,92054.0,0.1087431]
[1763634680813,0.11094123,92055.0,92054.0,0.16360429]
[1763634681011,0.13786123,92055.0,92054.0,0.05486119]
[1763634681310,0.16390123,92055.0,92054.0,0.05486119]
[1763634682204,0.16390123,92055.0,92054.0,0.05586119]
[1763634683215,0.16390123,92055.0,92054.0,0.00162119]
[1763634684916,0.52470123,92055.0,92054.0,0.00162119]
[1763634686307,0.52470123,92055.0,92054.0,0.02835119]
[1763634686805,0.52470123,92055.0,92054.0,0.00062119]
[1763634687309,0.41595803,92055.0,92054.0,0.02735119]
[1763634688010,0.41595803,92055.0,92054.0,0.00062119]
[1763634689211,0.41595803,92055.0,92051.0,0.00011153]
[1763634689212,0.05549,92052.0,92051.0,3e-08]
[1763634689416,0.1642421,92047.0,92046.0,0.0002716]
[1763634689615,0.52724013,92047.0,92046.0,0.0002716]
[1763634690509,0.52733664,92047.0,92046.0,0.0002716]
[1763634691607,0.1802468,92043.0,92042.0,0.00016289]
[1763634691823,0.28732483,92043.0,92042.0,0.00016289]
[1763634692521,0.28732483,92043.0,92032.0,0.02642]
[1763634692522,0.1616986,92033.0,92032.0,0.02642]
[1763634692815,0.05293,92032.0,92031.0,0.05812951]
[1763634693013,0.05293,92030.0,92029.0,0.3608]
[1763634693211,0.05523956,92030.0,92029.0,0.36142119]
[1763634694011,0.05523956,92030.0,92029.0,0.38745119]
[1763634695512,0.05523956,92030.0,92029.0,0.02665119]
[1763634697019,0.05523956,92030.0,92029.0,0.05520119]
[1763634697315,0.05523956,92030.0,92023.0,0.11270951]
[1763634697316,0.1617093,92024.0,92023.0,0.11270951]
[1763634697523,0.16390733,92024.0,92023.0,0.05520119]
[1763634698620,0.16390733,92024.0,92023.0,0.05620119]
[1763634699224,0.05512803,92024.0,92023.0,0.05620119]
[1763634700511,0.02796803,92024.0,92023.0,0.05620119]
[1763634701623,0.05512803,92024.0,92023.0,0.05620119]
[1763634702013,0.05304153,92030.0,92029.0,0.1787133]
[1763634702212,0.00011153,92030.0,92029.0,0.17933449]
[1763634702914,0.00016299,92033.0,92032.0,0.1633498]
[1763634703108,0.00016299,92033.0,92032.0,0.16397099]
[1763634704916,0.00016299,92033.0,92032.0,0.16497099]
[1763634707815,0.1616836,92046.0,92045.0,0.1633333]
[1763634708017,0.1616836,92046.0,92045.0,0.16395449]
[1763634708311,0.1087506,92049.0,92046.0,0.06994]
[1763634708516,0.4953221,92047.0,92046.0,0.07056119]
[1763634709420,0.4953221,92047.0,92046.0,0.17931449]
[1763634709625,0.1616821,92047.0,92046.0,0.17931449]
[1763634710415,0.16388013,92047.0,92046.0,0.07056119]
[1763634712326,0.16388013,92047.0,92046.0,0.17931449]
[1763634713827,0.00219803,92047.0,92046.0,0.17931449]
[1763634714123,0.52263439,92056.0,92055.0,0.05458]
[1763634714335,0.52483242,92056.0,92055.0,0.05520119]
[1763634715133,0.52483242,92056.0,92055.0,0.00062119]
[1763634715319,0.52483242,92056.0,92055.0,0.02665119]
[1763634716031,0.52483242,92056.0,92055.0,0.05520119]
[1763634717826,0.52483242,92056.0,92055.0,0.09387818]
[1763634718028,0.52483242,92056.0,92055.0,0.00062119]
[1763634718820,0.52483242,92056.0,92055.0,0.02665119]
[1763634719729,0.52483242,92056.0,92055.0,0.00062119]
[1763634719932,0.1616738,92054.0,92053.0,0.03867699]
[1763634720121,0.16387183,92054.0,92053.0,0.03867699]
[1763634720317,0.66871183,92054.0,92053.0,0.03867699]
[1763634720522,0.66871183,92054.0,92046.0,0.00016299]
[1763634720523,0.1616821,92047.0,92046.0,0.00016299]
[1763634720826,0.52468013,92047.0,92046.0,0.00016299]
[1763634721923,0.52468013,92047.0,92046.0,0.00078418]
[1763634722425,0.52468013,92047.0,92046.0,0.02557418]
[1763634723429,0.52468013,92047.0,92046.0,0.00078418]
[1763634725530,0.52468013,92047.0,92046.0,0.05157418]
[1763634725735,0.1624515,92039.0,92038.0,0.05803277]
[1763634726027,0.1624551,92036.0,92034.0,0.05803277]
[1763634726227,0.1624551,92036.0,92035.0,0.00062119]
[1763634726434,0.16465313,92036.0,92035.0,0.10944396]
[1763634728035,0.16465313,92036.0,92035.0,0.11044396]
[1763634728627,0.16465313,92036.0,92035.0,0.05903277]
[1763634728827,0.16465313,92036.0,92035.0,0.001]
[1763634729346,0.16465313,92036.0,92035.0,0.00162119]
[1763634730129,0.16465313,92036.0,92035.0,0.00062119]
[1763634732530,0.1624622,92030.0,92029.0,0.3608]
[1763634732733,0.16466023,92030.0,92029.0,0.36142119]
[1763634732938,0.16466023,92030.0,92029.0,0.00062119]
[1763634733134,0.1624657,92027.0,92026.0,0.00016299]
[1763634733332,0.16466373,92027.0,92026.0,2.99e-06]
[1763634733835,0.05369,92012.0,92011.0,0.05803277]
[1763634734041,0.05369,92007.0,92006.0,0.05830449]
[1763634734228,0.05588803,92007.0,92006.0,0.00027172]
[1763634741439,0.06923,91998.0,91997.0,0.00016299]
[1763634741635,0.18023803,91998.0,91997.0,0.00016299]
[1763634741835,0.1625177,91983.0,91979.0,0.05803277]
[1763634742040,0.16471573,91983.0,91978.0,0.05803277]
[1763634742340,0.16471573,91983.0,91982.0,0.41221119]
[1763634743027,0.05596697,91983.0,91982.0,0.52204009]
[1763634743228,0.00227697,91983.0,91982.0,0.52204009]
[1763634744833,7.894e-05,91983.0,91982.0,0.92204009]
[1763634745028,0.00016299,91992.0,91991.0,0.1596083]
[1763634745238,0.00236102,91992.0,91991.0,0.16022949]
[1763634745443,0.13661812,91992.0,91991.0,0.05141119]
[1763634746039,0.16486812,91992.0,91991.0,0.05141119]
[1763634746743,0.05605102,91992.0,91991.0,0.05141119]
[1763634747538,0.16486812,91992.0,91991.0,0.05141119]
[1763634751642,0.17833812,91992.0,91991.0,0.00062119]
[1763634751856,0.1558277,91983.0,91982.0,0.39942909]
[1763634752047,0.15802573,91983.0,91982.0,0.40005028]
[1763634752550,0.15802573,91983.0,91982.0,0.40737119]
[1763634753139,0.15802573,91983.0,91982.0,0.40837119]
[1763634754646,0.15802573,91983.0,91982.0,0.00162119]
[1763634755044,0.15802573,91983.0,91982.0,0.001]
[1763634755749,0.15802573,91983.0,91982.0,0.04844119]
[1763634758341,0.15802573,91983.0,91982.0,0.08710232]
[1763634758942,0.15802573,91983.0,91982.0,0.04844119]
[1763634759144,0.15802573,91983.0,91982.0,0.08710232]
[1763634759355,0.15802573,91983.0,91982.0,0.087166]
[1763634760251,0.15802573,91983.0,91982.0,0.04844119]
[1763634760651,0.15802573,91983.0,91982.0,0.00162119]
[1763634760847,0.15802573,91983.0,91982.0,0.03973924]
[1763634761248,0.15802573,91983.0,91982.0,0.001]
[1763634762346,0.15802573,91983.0,91982.0,0.03976215]
[1763634763256,0.15802573,91983.0,91982.0,0.001]
[1763634763853,0.15802573,91983.0,91982.0,0.0398051]
[1763634764556,0.15802573,91983.0,91982.0,0.04844119]
[1763634765662,0.00219803,91983.0,91982.0,0.04844119]
[1763634768662,0.1088227,91988.0,91987.0,0.06074]
[1763634768958,0.1088227,91988.0,91987.0,0.06136119]
[1763634769256,0.1555093,91991.0,91990.0,0.1556383]
[1763634769459,0.15770733,91991.0,91990.0,0.21448269]
[1763634770361,0.15770733,91991.0,91990.0,0.15625949]
[1763634771653,0.15770733,91991.0,91990.0,0.04744119]
[1763634771854,0.15770733,91991.0,91990.0,0.1056868]
[1763634772054,0.15770733,91991.0,91990.0,0.04744119]
[1763634774962,0.15770733,91991.0,91990.0,0.10569181]
[1763634775165,0.15770733,91991.0,91990.0,0.04744119]
[1763634775461,0.1180666,92001.0,91990.0,0.04744119]
[1763634775462,0.04669,92012.0,92011.0,0.1556146]
[1763634775662,0.04888803,92012.0,92011.0,0.10566762]
[1763634775862,0.04888803,92012.0,92011.0,0.21443697]
[1763634776160,0.04888803,92012.0,92011.0,0.15623579]
[1763634776760,0.04888803,92012.0,92011.0,0.04744119]
[1763634777058,0.04988803,92012.0,92011.0,0.15623579]
[1763634777565,0.15868143,92012.0,92011.0,0.04744119]
[1763634777762,0.15968143,92012.0,92011.0,0.04744119]
[1763634780361,0.05088803,92012.0,92011.0,0.04744119]
[1763634780871,0.002,92012.0,92011.0,0.04744119]